bitfinex-derivatives/quotes_ETHF0:USTF0_20251025
["timestamp","ask_amount","ask_price","bid_price","bid_amount"]
[1761370435551,0.80993104,3925.4,3925.3,1.38539952]
[1761370440452,0.80993104,3925.4,3925.3,1.03909952]
[1761370440952,0.80993104,3925.4,3925.3,1.35859952]
[1761370442353,0.34273104,3925.4,3925.3,1.35859952]
[1761370442554,0.00233104,3925.4,3925.3,1.35859952]
[1761370442743,0.33603104,3925.4,3925.3,1.35859952]
[1761370443053,0.33603104,3925.4,3925.3,1.81710952]
[1761370443254,0.55953104,3925.4,3925.3,1.81710952]
[1761370443953,0.00233104,3925.4,3925.3,1.81710952]
[1761370445556,0.00233104,3925.4,3925.3,1.85213302]
[1761370446062,0.33603104,3925.4,3925.3,1.85213302]
[1761370446360,0.00233104,3925.4,3925.3,1.85213302]
[1761370446861,0.33603104,3925.4,3925.3,1.85213302]
[1761370448859,0.33603104,3925.4,3925.3,1.39362302]
[1761370449060,0.55953104,3925.4,3925.3,1.39362302]
[1761370449858,0.78893104,3925.4,3925.3,1.04872302]
[1761370450062,0.78893104,3925.4,3925.3,0.82922302]
[1761370450562,0.78893104,3925.4,3925.3,1.39932302]
[1761370450762,0.78893104,3925.4,3925.3,0.61632302]
[1761370451756,0.33603104,3925.4,3925.3,1.85783302]
[1761370451960,0.00233104,3925.4,3925.3,1.85783302]
[1761370452757,0.00233104,3925.4,3925.3,3.23401369]
[1761370453065,0.00233104,3925.4,3925.3,1.85783302]
[1761370454266,0.00233104,3925.4,3925.3,3.23214439]
[1761370455164,0.00233104,3925.4,3925.3,1.85783302]
[1761370455767,0.00233104,3925.4,3925.3,1.89285652]
[1761370457067,3.7747,3926.1,3926.0,0.783]
[1761370457862,3.77649415,3926.1,3926.0,1.43670578]
[1761370460359,4.00589415,3926.1,3926.0,0.65370578]
[1761370466171,4.00589415,3926.1,3926.0,0.68872928]
[1761370469369,0.79809415,3926.1,3926.0,0.68872928]
[1761370474176,0.79809415,3926.1,3926.0,0.90162928]
[1761370476567,0.79809415,3926.1,3926.0,0.93665278]
[1761370479175,0.79809415,3926.1,3926.0,1.39507278]
[1761370479478,0.79809415,3926.1,3926.0,1.97247278]
[1761370481577,0.79809415,3926.1,3926.0,1.62787278]
[1761370482182,0.79809415,3926.1,3926.0,1.97247278]
[1761370482477,0.79809415,3926.1,3926.0,1.51405278]
[1761370483982,0.79809415,3926.1,3926.0,1.16945278]
[1761370484482,0.79809415,3926.1,3926.0,0.93665278]
[1761370486879,0.79809415,3926.1,3926.0,0.97167628]
[1761370487081,0.79809415,3926.1,3926.0,1.43009628]
[1761370489285,0.79809415,3926.1,3926.0,0.97167628]
[1761370489778,0.79809415,3926.1,3926.0,0.75877628]
[1761370491882,0.79809415,3926.1,3926.0,0.98807628]
[1761370492880,0.79809415,3926.1,3926.0,1.44649628]
[1761370495279,0.00179415,3926.1,3926.0,3.06982877]
[1761370496081,0.00179415,3926.1,3926.0,2.15429628]
[1761370496276,0.00179415,3926.1,3926.0,3.07125298]
[1761370496881,0.00179415,3926.1,3926.0,2.15429628]
[1761370497079,0.00179415,3926.1,3926.0,2.18931978]
[1761370498076,0.34029415,3926.1,3926.0,2.18931978]
[1761370498278,0.34029415,3926.1,3926.0,3.10607763]
[1761370500187,0.00179415,3926.1,3926.0,3.10607763]
[1761370501484,0.00179415,3926.1,3926.0,6.77041852]
[1761370501688,0.00179415,3926.1,3926.0,5.39711978]
[1761370501986,3.528,3926.8,3926.7,0.7649]
[1761370502286,3.528,3926.8,3926.7,10.49834052]
[1761370502679,3.758,3926.8,3926.7,10.49834052]
[1761370502880,3.7604978,3926.8,3926.7,10.49834052]
[1761370504692,3.2102978,3926.8,3926.7,10.49834052]
[1761370505000,0.0024978,3926.8,3926.7,11.41480084]
[1761370505496,0.0024978,3926.8,3926.7,10.49834052]
[1761370506395,0.3226978,3926.8,3926.7,10.49834052]
[1761370507601,0.3226978,3926.8,3926.7,10.53336402]
[1761370511005,0.3226978,3926.8,3926.7,10.99170402]
[1761370513699,0.7686978,3926.8,3926.7,1.59136402]
[1761370514002,0.7686978,3926.8,3926.7,10.53136402]
[1761370514802,0.7686978,3926.8,3926.7,10.98970402]
[1761370515196,0.7686978,3926.8,3926.7,10.98870402]
[1761370517804,0.7686978,3926.8,3926.7,11.02372752]
[1761370518007,0.7686978,3926.8,3926.7,10.56538752]
[1761370518209,0.7686978,3926.8,3926.7,1.29618752]
[1761370518401,0.7686978,3926.8,3926.7,0.86148752]
[1761370522308,8.7686978,3926.8,3926.7,0.86148752]
[1761370522908,11.9764978,3926.8,3926.7,0.86148752]
[1761370523902,3.9764978,3926.8,3926.7,0.86148752]
[1761370524212,0.7649,3926.1,3926.0,0.00235926]
[1761370524708,0.7649,3926.1,3926.0,0.21545926]
[1761370528204,0.7649,3926.1,3926.0,0.25048276]
[1761370531218,0.7649,3926.1,3926.0,0.03738276]
[1761370534121,0.7649,3926.1,3926.0,0.25048276]
[1761370536218,0.7649,3926.1,3926.0,0.82118276]
[1761370536621,0.5452,3926.1,3926.0,1.27960276]
[1761370536924,0.3189,3926.3,3926.2,1.2422]
[1761370537118,0.3189,3926.3,3926.2,1.2772235]
[1761370538321,0.3358,3926.4,3926.3,0.8138]
[1761370538519,0.3358,3926.4,3926.3,0.883847]
[1761370538723,0.5633,3926.4,3926.3,0.883847]
[1761370541020,3.4377978,3926.8,3926.4,0.45838]
[1761370541326,0.5633,3926.7,3926.6,0.8138]
[1761370541528,0.5633,3926.7,3926.6,0.883847]
[1761370543030,3.5460978,3926.8,3926.7,0.3507]
[1761370543229,3.4377978,3926.8,3926.7,0.8138]
[1761370543423,3.4377978,3926.8,3926.7,0.883847]
[1761370543624,3.7735978,3926.8,3926.7,0.883847]
[1761370544531,3.9934978,3926.8,3926.7,0.883847]
[1761370544733,0.7856978,3926.8,3926.7,0.883847]
[1761370545533,0.0024978,3926.8,3926.7,1.342187]
[1761370548533,0.3382978,3926.8,3926.7,0.883847]
[1761370548831,0.3382978,3926.8,3926.7,0.9188705]
[1761370549630,0.5657978,3926.8,3926.7,0.9188705]
[1761370550035,0.5657978,3926.8,3926.7,1.3772105]
[1761370550331,0.3382978,3926.8,3926.7,1.3772105]
[1761370552233,0.0024978,3926.8,3926.7,1.3772105]
[1761370553938,0.3358,3927.3,3927.1,0.45829]
[1761370554136,0.3358,3927.3,3927.2,9.7558]
[1761370554342,0.3358,3927.3,3927.2,10.21408]
[1761370554744,3.2078,3927.4,3927.3,1.27207]
[1761370555133,3.20984709,3927.4,3927.3,1.27207]
[1761370555835,3.20984709,3927.4,3927.3,1.3771405]
[1761370557436,0.00204709,3927.4,3927.3,1.3771405]
[1761370559146,0.00204709,3927.4,3927.3,1.412164]
[1761370565250,0.00204709,3927.4,3927.3,10.352164]
[1761370566459,0.58044709,3927.4,3927.3,1.412164]
[1761370566646,0.58044709,3927.4,3927.3,10.351164]
[1761370567058,0.35314709,3927.4,3927.3,10.351164]
[1761370567761,0.00204709,3927.4,3927.3,10.351164]
[1761370569553,0.00204709,3927.4,3927.3,10.37229163]
[1761370572158,0.00204709,3927.4,3927.3,1.43329163]
[1761370572350,0.00204709,3927.4,3927.3,10.37129163]
[1761370572556,0.32744709,3927.4,3927.3,10.37129163]
[1761370574666,0.55174709,3927.4,3927.3,10.37129163]
[1761370574863,0.78734709,3927.4,3927.3,9.91202163]
[1761370575864,0.78734709,3927.4,3927.3,0.97502163]
[1761370576062,0.78734709,3927.4,3927.3,10.37029163]
[1761370578760,0.78734709,3927.4,3927.3,0.97502163]
[1761370578967,0.78734709,3927.4,3927.3,9.32562163]
[1761370579666,0.78734709,3927.4,3927.3,9.66512163]
[1761370580259,0.78734709,3927.4,3927.3,9.66612163]
[1761370583468,0.78734709,3927.4,3927.3,9.89872163]
[1761370585369,0.55174709,3927.4,3927.3,9.89872163]
[1761370586070,0.55174709,3927.4,3927.3,9.89772163]
[1761370586570,0.00204709,3927.4,3927.3,10.35599163]
[1761370587171,0.00204709,3927.4,3927.3,11.73068212]
[1761370589965,0.00204709,3927.4,3927.3,10.35599163]
[1761370592477,0.00204709,3927.4,3927.3,11.73068212]
[1761370595178,0.00204709,3927.4,3927.3,14.93848212]
[1761370599981,0.00204709,3927.4,3927.3,11.73068212]
[1761370600282,0.00204709,3927.4,3927.3,14.93848212]
[1761370602182,0.00204709,3927.4,3927.3,13.56379163]
[1761370609692,0.022,3927.8,3927.7,1.25903]
[1761370609883,0.022,3927.8,3927.7,11.10996823]
[1761370610488,0.022,3927.8,3927.7,11.27118986]
[1761370610788,0.0245967,3927.8,3927.7,11.27118986]
[1761370611491,0.3505967,3927.8,3927.7,11.27118986]
[1761370613289,0.3505967,3927.8,3927.7,10.35725163]
[1761370616698,0.5755967,3927.8,3927.7,10.35725163]
[1761370617494,0.5755967,3927.8,3927.7,11.27165407]
[1761370619908,0.5755967,3927.8,3927.7,10.81342407]
[1761370620699,0.5755967,3927.8,3927.7,11.27165407]
[1761370621308,0.5755967,3927.8,3927.7,10.35725163]
[1761370622306,0.7894967,3927.8,3927.7,10.35725163]
[1761370622909,0.7894967,3927.8,3927.7,11.27210928]
[1761370624510,0.7894967,3927.8,3927.7,10.81387928]
[1761370624706,0.7894967,3927.8,3927.7,1.54017928]
[1761370624913,0.7894967,3927.8,3927.7,10.47617928]
[1761370626106,0.7894967,3927.8,3927.7,9.56132163]
[1761370626504,0.7894967,3927.8,3927.7,10.36575163]
[1761370626913,0.3505967,3927.8,3927.7,10.36575163]
[1761370627106,0.0245967,3927.8,3927.7,10.36575163]
[1761370629006,0.7927967,3927.8,3927.7,10.8226492]
[1761370629203,0.7927967,3927.8,3927.7,10.4764492]
[1761370630716,0.7927967,3927.8,3927.7,1.8622492]
[1761370631008,0.7927967,3927.8,3927.7,10.7982492]
[1761370631917,0.5612967,3927.8,3927.7,11.2564792]
[1761370632216,0.3446967,3927.8,3927.7,11.2564792]
[1761370632714,0.5612967,3927.8,3927.7,11.2564792]
[1761370632915,0.5612967,3927.8,3927.7,10.34135163]
[1761370632916,0.7927967,3927.8,3927.7,10.34135163]
[1761370633817,0.7927967,3927.8,3927.7,9.88312163]
[1761370635921,0.7927967,3927.8,3927.7,10.79873367]
[1761370639125,0.7927967,3927.8,3927.7,11.25696367]
[1761370639325,0.7927967,3927.8,3927.7,2.32096367]
[1761370639525,0.7927967,3927.8,3927.7,11.25696367]
[1761370639825,0.5612967,3927.8,3927.7,11.25696367]
[1761370641728,0.0245967,3927.8,3927.7,11.25696367]
[1761370641930,0.0245967,3927.8,3927.7,10.34135163]
[1761370643532,0.0245967,3927.8,3927.7,11.71225898]
[1761370644132,0.0245967,3927.8,3927.7,10.34135163]
[1761370650839,0.0245967,3927.8,3927.7,13.54915163]
[1761370658238,0.3447,3928.6,3928.2,0.45816]
[1761370658441,0.5708,3928.6,3928.5,0.7748]
[1761370658745,0.5708,3928.6,3928.5,0.93602163]
[1761370659342,0.5732386,3928.6,3928.5,0.93602163]
[1761370661347,0.7923386,3928.6,3928.5,0.93602163]
[1761370664750,0.7923386,3928.6,3928.5,0.37792163]
[1761370670857,0.7923386,3928.6,3928.5,9.31192163]
[1761370673652,0.7923386,3928.6,3928.5,9.09522163]
[1761370674058,0.7923386,3928.6,3928.5,0.16122163]
[1761370674260,0.7923386,3928.6,3928.5,9.09522163]
[1761370677662,0.7923386,3928.6,3928.5,9.31192163]
[1761370677852,0.7923386,3928.6,3928.5,0.37792163]
[1761370678058,0.7923386,3928.6,3928.5,9.31192163]
[1761370680261,0.7923386,3928.6,3928.5,0.37792163]
[1761370680461,0.7923386,3928.6,3928.5,9.31192163]
[1761370680962,0.7923386,3928.6,3928.5,0.37792163]
[1761370681166,0.7923386,3928.6,3928.5,9.31192163]
[1761370681659,0.7923386,3928.6,3928.5,0.37792163]
[1761370681855,0.7923386,3928.6,3928.5,9.31192163]
[1761370683360,0.7923386,3928.6,3928.5,0.37792163]
[1761370683559,0.7923386,3928.6,3928.5,9.87752163]
[1761370684466,0.5732386,3928.6,3928.5,9.87752163]
[1761370707393,0.7915386,3928.6,3928.5,0.60602163]
[1761370707600,0.7915386,3928.6,3928.5,9.88002163]
[1761370709298,0.0024386,3928.6,3928.5,10.00852163]
[1761370713695,0.0024386,3928.6,3928.5,10.46665163]
[1761370713898,0.81525248,3929.0,3928.9,0.45809]
[1761370714101,4.58166533,3929.3,3929.2,0.7897]
[1761370714406,3.5408,3929.3,3929.2,9.7227]
[1761370714594,3.7589,3929.3,3929.2,9.88392163]
[1761370715093,3.97957438,3929.3,3929.2,0.16448924]
[1761370715291,3.97957438,3929.3,3929.2,0.39808924]
[1761370715494,3.97957438,3929.3,3929.2,0.95418924]
[1761370716902,0.77177438,3929.3,3929.2,0.95418924]
[1761370720405,0.77177438,3929.3,3929.2,0.16448924]
[1761370720702,0.77177438,3929.3,3929.2,0.38948924]
[1761370722105,0.77177438,3929.3,3929.2,0.16448924]
[1761370728310,3.97957438,3929.3,3929.2,0.16448924]
[1761370734918,0.77177438,3929.3,3929.2,0.16448924]
[1761370735118,3.97957438,3929.3,3929.2,0.16448924]
[1761370737426,0.77177438,3929.3,3929.2,0.16448924]
[1761370737618,3.97957438,3929.3,3929.2,0.16448924]
[1761370738422,3.98757438,3929.3,3929.2,0.16448924]
[1761370739821,0.77977438,3929.3,3929.2,0.16448924]
[1761370740122,3.98757438,3929.3,3929.2,0.16448924]
[1761370742723,3.98757438,3929.3,3929.2,0.39888924]
[1761370742916,3.98757438,3929.3,3929.2,0.72638924]
[1761370743316,3.98757438,3929.3,3929.2,0.39888924]
[1761370747219,2.15363971,3929.3,3929.2,0.39888924]
[1761370747433,5.36143971,3929.3,3929.2,0.39888924]
[1761370749530,2.15363971,3929.3,3929.2,0.39888924]
[1761370749729,5.36143971,3929.3,3929.2,0.39888924]
[1761370752132,3.98757438,3929.3,3929.2,0.16448924]
[1761370755429,0.77977438,3929.3,3929.2,0.16448924]
[1761370755635,3.98757438,3929.3,3929.2,0.16448924]
[1761370758034,0.77977438,3929.3,3929.2,0.16448924]
[1761370758233,3.98757438,3929.3,3929.2,0.16448924]
[1761370759431,3.98757438,3929.3,3929.2,0.37878924]
[1761370759735,3.98757438,3929.3,3929.2,0.93068924]
[1761370759736,5.36233164,3929.3,3929.2,0.93068924]
[1761370759933,3.98757438,3929.3,3929.2,0.93068924]
[1761370760236,4.90380552,3929.3,3929.2,0.93068924]
[1761370766141,3.98757438,3929.3,3929.2,0.93068924]
[1761370770038,3.98757438,3929.3,3929.2,0.59908924]
[1761370772847,3.98757438,3929.3,3929.2,0.37878924]
[1761370773740,3.98757438,3929.3,3929.2,0.16448924]
[1761370778845,0.77977438,3929.3,3929.2,0.16448924]
[1761370779045,3.98757438,3929.3,3929.2,0.16448924]
[1761370780046,12.91857438,3929.3,3929.2,0.16448924]
[1761370781645,12.91857438,3929.3,3929.2,0.37958924]
[1761370782046,12.91857438,3929.3,3929.2,0.16448924]
[1761370784455,9.71077438,3929.3,3929.2,0.16448924]
[1761370784651,12.91857438,3929.3,3929.2,0.16448924]
[1761370793359,9.71077438,3929.3,3929.2,0.16448924]
[1761370793562,12.91857438,3929.3,3929.2,0.16448924]
[1761370803166,14.29333164,3929.3,3929.2,0.16448924]
[1761370806963,12.91857438,3929.3,3929.2,0.16448924]
[1761370810677,9.71077438,3929.3,3929.2,0.16448924]
[1761370810877,12.91857438,3929.3,3929.2,0.16448924]
[1761370812880,14.29283039,3929.3,3929.2,0.16448924]
[1761370815373,11.08503039,3929.3,3929.2,0.16448924]
[1761370815672,14.29283039,3929.3,3929.2,0.16448924]
[1761370818680,11.08503039,3929.3,3929.2,0.16448924]
[1761370818872,14.29283039,3929.3,3929.2,0.16448924]
[1761370819872,12.91857438,3929.3,3929.2,0.16448924]
[1761370820972,14.29283039,3929.3,3929.2,0.16448924]
[1761370826586,11.08503039,3929.3,3929.2,0.16448924]
[1761370826880,14.29283039,3929.3,3929.2,0.16448924]
[1761370832290,11.08503039,3929.3,3929.2,0.16448924]
[1761370832694,14.29283039,3929.3,3929.2,0.16448924]
[1761370833191,12.91857438,3929.3,3929.2,0.16448924]
[1761370834794,9.71077438,3929.3,3929.2,0.16448924]
[1761370834991,12.91857438,3929.3,3929.2,0.16448924]
[1761370842094,0.1389,3928.5,3928.4,1.36525187]
[1761370842289,0.9561,3928.5,3928.4,0.4503]
[1761370842892,0.9561,3928.5,3928.4,0.7823]
[1761370843087,0.9561,3928.5,3928.4,0.78456569]
[1761370843288,0.9561,3928.5,3928.4,0.45256569]
[1761370843694,0.9561,3928.5,3928.4,0.23026569]
[1761370843895,0.9561,3928.5,3928.4,0.00226569]
[1761370846002,0.9561,3928.5,3928.4,0.23026569]
[1761370848000,0.9561,3928.5,3928.4,0.78456569]
[1761370848205,0.8172,3928.5,3928.4,0.78456569]
[1761370852307,0.9561,3928.5,3928.4,0.45256569]
[1761370853307,0.9561,3928.5,3928.4,0.23026569]
[1761370856300,4.1639,3928.5,3928.4,0.23026569]
[1761370858911,4.1639,3928.5,3928.4,0.00226569]
[1761370859812,4.1639,3928.5,3928.4,0.23416569]
[1761370862620,0.9561,3928.5,3928.4,0.00226569]
[1761370862813,4.1639,3928.5,3928.4,0.00226569]
[1761370869720,4.1639,3928.5,3928.4,0.55166569]
[1761370870118,4.1639,3928.5,3928.4,0.22276569]
[1761370871818,4.1639,3928.5,3928.4,0.00226569]
[1761370872323,5.08029898,3928.5,3928.4,0.00226569]
[1761370877626,5.08029898,3928.5,3928.4,0.22276569]
[1761370878425,5.08029898,3928.5,3928.4,0.77586569]
[1761370885529,4.025,3928.5,3928.4,0.77586569]
[1761370886236,0.91639898,3928.8,3928.4,0.77586569]
[1761370886432,0.3389,3928.7,3928.6,0.7736]
[1761370887727,0.3389,3928.8,3928.7,0.7736]
[1761370888934,0.571,3928.8,3928.7,0.7736]
[1761370896843,3.5467,3928.9,3928.8,1.2317]
[1761370897458,0.3389,3928.9,3928.8,1.2317]
[1761370898351,0.3389,3928.9,3928.8,0.7736]
[1761370898551,0.571,3928.9,3928.8,0.7736]
[1761370903848,0.571,3928.9,3928.8,1.2317]
[1761370904250,8.94037438,3929.3,3929.1,0.4423]
[1761370904251,0.3446,3929.2,3929.1,0.4423]
[1761370904455,0.3446,3929.2,3929.1,0.7865]
[1761370904657,0.7854,3929.2,3929.1,0.2153]
[1761370904957,0.9253,3929.0,3928.9,0.5595]
[1761370905456,0.9253,3929.0,3928.9,0.7865]
[1761370905658,0.7854,3929.0,3928.9,0.7865]
[1761370906054,0.5708,3929.0,3928.9,1.24458]
[1761370906251,0.3446,3929.0,3928.9,1.24458]
[1761370907459,0.5708,3929.2,3929.1,0.7865]
[1761370909655,0.7854,3929.2,3929.1,0.7865]
[1761370913269,0.4408,3928.9,3928.8,10.17259]
[1761370913462,0.7854,3928.9,3928.8,10.17259]
[1761370914064,0.7854,3928.9,3928.8,1.24459]
[1761370914664,0.5708,3928.9,3928.8,1.24459]
[1761370914866,0.3446,3928.9,3928.8,1.24459]
[1761370916258,0.3446,3928.9,3928.8,2.15954187]
[1761370917566,0.5708,3929.2,3929.1,0.7865]
[1761370918068,0.7854,3929.2,3929.1,0.7865]
[1761370920366,0.5708,3929.2,3929.1,1.24456]
[1761370920966,0.5708,3929.2,3929.1,0.7865]
[1761370921263,0.5708,3929.2,3929.1,1.24456]
[1761370921471,0.34657438,3929.3,3929.2,0.7842]
[1761370923666,0.57397438,3929.3,3929.2,0.7842]
[1761370923871,0.57397438,3929.3,3929.2,9.7122]
[1761370926377,0.34657438,3929.3,3929.2,9.7122]
[1761370926575,0.01037438,3929.3,3929.2,10.17025]
[1761370926776,0.57397438,3929.3,3929.2,9.7122]
[1761370927473,0.57397438,3929.3,3929.2,10.17025]
[1761370933878,0.34657438,3929.3,3929.2,10.17025]
[1761370934472,0.01037438,3929.3,3929.2,10.17025]
[1761370934677,0.01037438,3929.3,3929.2,11.08520187]
[1761370948794,0.44217438,3929.3,3929.2,1.37300187]
[1761370949094,0.7698,3928.6,3928.5,9.1447]
[1761370949287,0.7698,3928.6,3928.5,0.7769]
[1761370949490,0.9104,3928.5,3928.4,0.00226569]
[1761370949692,0.7698,3927.4,3927.3,7.0329]
[1761370950000,0.338,3927.4,3927.3,0.7769]
[1761370950189,0.5552,3927.4,3927.3,9.7169]
[1761370950389,0.7698,3927.4,3927.3,9.7169]
[1761370950589,0.7698,3927.4,3927.3,9.7189219]
[1761370950989,0.5552,3927.4,3927.3,9.7189219]
[1761370953690,0.338,3927.4,3927.3,9.7189219]
[1761370954692,0.338,3927.9,3927.4,0.3411]
[1761370954898,0.4318,3927.9,3927.8,0.7769]
[1761370955087,0.4318,3927.9,3927.8,9.7169]
[1761370955292,0.7698,3927.9,3927.8,9.7169]
[1761370960195,0.3502,3928.1,3927.8,9.3758]
[1761370960391,0.3502,3928.4,3928.3,0.8035]
[1761370960797,0.585,3928.4,3928.3,0.8035]
[1761370964904,0.8091,3928.4,3928.3,0.8035]
[1761370965305,0.8091,3928.4,3928.3,9.7455]
[1761370965701,0.585,3928.4,3928.3,9.7455]
[1761370965901,0.585,3928.6,3928.5,0.8035]
[1761370968704,0.8171,3928.6,3928.5,0.8035]
[1761370968911,0.8171,3928.6,3928.5,0.4595]
[1761370969097,0.8171,3928.6,3928.5,0.2245]
[1761370970905,0.8171,3928.6,3928.5,0.8035]
[1761370972312,0.593,3928.6,3928.5,0.8035]
[1761370972526,0.593,3928.6,3928.5,0.9343]
[1761370972527,0.3582,3928.6,3928.5,0.9343]
[1761370972813,0.008,3928.6,3928.5,0.9343]
[1761370974116,0.3582,3928.6,3928.5,0.9343]
[1761370974519,0.593,3928.6,3928.5,0.8035]
[1761370978717,0.8171,3928.6,3928.5,0.8035]
[1761370981610,0.8171,3928.6,3928.3,8.942]
[1761370981611,0.3206,3928.2,3928.1,1.01288]
[1761370981911,0.7686,3928.2,3928.1,9.95288]
[1761370982509,0.7686,3928.2,3928.1,9.716]
[1761370985223,0.3206,3928.1,3928.0,1.68792178]
[1761370985424,0.7686,3928.1,3928.0,8.939]
[1761370985924,0.7686,3928.1,3928.0,9.1555]
[1761370986627,0.7686,3928.1,3928.0,9.715]
[1761370988925,0.7686,3928.1,3928.0,0.776]
[1761370989232,0.7686,3928.1,3928.0,9.715]
[1761370989823,0.7686,3928.1,3928.0,10.62692178]
[1761370992427,0.5405,3928.1,3928.0,10.62692178]
[1761370995531,0.7669,3928.1,3928.0,1.68792178]
[1761370995735,0.7669,3928.1,3928.0,10.62052178]
[1761370996036,0.7669,3928.1,3928.0,1.68252178]
[1761370996236,0.7669,3928.1,3928.0,10.62052178]
[1761370996440,0.7669,3928.1,3928.0,1.68252178]
[1761370996632,0.7669,3928.1,3928.0,10.62052178]
[1761370997346,0.7669,3928.1,3928.0,1.68252178]
[1761370997836,0.7669,3928.1,3928.0,10.61952178]
[1761370998036,0.7669,3928.1,3928.0,9.7076]
[1761370998625,0.7669,3928.1,3928.0,0.7706]
[1761370998834,0.7669,3928.1,3928.0,9.7076]
[1761371001039,0.7669,3928.1,3928.0,0.7706]
[1761371001247,0.7669,3928.1,3928.0,9.7076]
[1761371003750,0.7669,3928.1,3928.0,0.7706]
[1761371004149,0.7669,3928.1,3928.0,9.7076]
[1761371005653,0.7669,3928.1,3928.0,0.7706]
[1761371005855,0.7669,3928.1,3928.0,9.7076]
[1761371010253,0.7669,3928.1,3928.0,0.7706]
[1761371010454,0.7669,3928.1,3928.0,9.7066]
[1761371010955,0.7669,3928.1,3928.0,0.7706]
[1761371011149,0.7669,3928.1,3928.0,9.7066]
[1761371013760,0.7669,3928.1,3928.0,0.7706]
[1761371014058,0.7669,3928.1,3928.0,9.7066]
[1761371015960,0.7669,3928.1,3928.0,0.7706]
[1761371016167,0.7669,3928.1,3928.0,9.7056]
[1761371016461,0.7669,3928.1,3928.0,0.7706]
[1761371016761,0.7669,3928.1,3928.0,9.7056]
[1761371017655,0.7669,3928.1,3928.0,9.7046]
[1761371018259,0.7669,3928.1,3928.0,0.7706]
[1761371018560,0.7669,3928.1,3928.0,9.7046]
[1761371018758,0.7669,3928.1,3928.0,0.7706]
[1761371018962,0.7669,3928.1,3928.0,9.7046]
[1761371020362,0.7749,3928.1,3928.0,9.7046]
[1761371025561,0.7749,3928.1,3928.0,0.7706]
[1761371025860,0.7749,3928.1,3928.0,9.7036]
[1761371027172,0.7749,3928.1,3928.0,0.7706]
[1761371027469,0.7749,3928.1,3928.0,10.61552178]
[1761371027967,0.7749,3928.1,3928.0,1.68252178]
[1761371028168,0.7749,3928.1,3928.0,10.61552178]
[1761371028467,0.7749,3928.1,3928.0,1.68252178]
[1761371028668,0.7749,3928.1,3928.0,10.61452178]
[1761371030367,0.91560194,3928.7,3928.6,0.7773]
[1761371030567,1.25910194,3929.0,3928.9,0.7773]
[1761371030774,1.49450194,3929.0,3928.9,0.7773]
[1761371031368,0.5789,3929.0,3928.9,0.7773]
[1761371038074,0.8123,3929.0,3928.9,0.7773]
[1761371038282,0.9471,3929.0,3928.9,0.7773]
[1761371040681,0.9471,3929.0,3928.9,0.4437]
[1761371040890,0.9471,3929.0,3928.7,0.3466]
[1761371041286,0.9471,3929.0,3928.9,0.2155]
[1761371041789,0.9471,3929.0,3928.9,0.7781]
[1761371044281,0.5789,3929.0,3928.9,0.7781]
[1761371044485,0.3435,3929.0,3928.9,0.7781]
[1761371044975,0.5741,3929.0,3928.9,0.7781]
[1761371049591,0.793,3929.0,3928.9,0.7781]
[1761371050787,0.3447,3929.1,3929.0,0.3416]
[1761371050993,0.3447,3929.2,3929.1,0.7774]
[1761371051793,0.5802,3929.2,3929.1,0.7774]
[1761371054492,4.47047632,3929.3,3929.2,0.7774]
[1761371054688,3.55487438,3929.3,3929.2,0.7774]
[1761371054894,3.79037438,3929.3,3929.2,0.7774]
[1761371056194,4.70597632,3929.3,3929.2,0.7774]
[1761371058196,4.92207632,3929.3,3929.2,0.7774]
[1761371066102,1.71427632,3929.3,3929.2,0.7774]
[1761371066401,4.92207632,3929.3,3929.2,0.7774]
[1761371066603,4.92207632,3929.3,3929.2,0.4358]
[1761371069809,4.92207632,3929.3,3929.2,0.2129]
[1761371070306,4.00647438,3929.3,3929.2,0.2129]
[1761371071410,0.79867438,3929.3,3929.2,0.2129]
[1761371071610,4.00647438,3929.3,3929.2,0.2129]
[1761371077311,4.00647438,3929.3,3929.0,0.3416]
[1761371077608,0.3447,3929.1,3929.0,0.7774]
[1761371078512,4.47797257,3929.3,3929.1,0.3226]
[1761371078809,3.56187438,3929.3,3929.2,0.756]
[1761371079012,3.79037438,3929.3,3929.2,0.756]
[1761371081119,4.02137438,3929.3,3929.2,0.756]
[1761371082514,0.81357438,3929.3,3929.2,0.756]
[1761371101528,0.81357438,3929.3,3929.2,0.2182]
[1761371102627,0.1369,3929.0,3928.9,1.46555413]
[1761371102820,0.9278,3929.0,3928.9,1.13325413]
[1761371103021,0.9278,3929.0,3928.9,1.46555413]
[1761371103223,0.9278,3929.0,3928.9,1.68105413]
[1761371105027,0.7909,3929.0,3928.9,1.68105413]
[1761371107325,0.34797438,3929.3,3929.2,0.4341]
[1761371107529,0.34797438,3929.3,3929.2,0.7664]
[1761371108130,0.56167438,3929.3,3929.2,0.7664]
[1761371108319,0.00237438,3929.3,3929.2,0.7664]
[1761371112922,0.00237438,3929.3,3929.2,1.22445]
[1761371113636,0.91609819,3930.2,3930.1,0.7653]
[1761371113931,3.6643,3930.4,3930.3,0.2227]
[1761371114229,3.9856,3930.4,3930.0,0.3194]
[1761371114426,0.7778,3930.1,3930.0,9.6973]
[1761371114623,0.78064394,3930.1,3930.0,9.70022799]
[1761371116530,0.78064394,3930.1,3930.0,9.70222799]
[1761371121036,0.78064394,3930.1,3930.0,9.38282799]
[1761371121536,0.78064394,3930.1,3930.0,9.70222799]
[1761371121738,0.55984394,3930.1,3930.0,9.70222799]
[1761371123241,0.55984394,3930.1,3930.0,0.76822799]
[1761371123441,0.55984394,3930.1,3930.0,9.70022799]
[1761371123944,0.55984394,3930.1,3930.0,0.76822799]
[1761371124144,0.55984394,3930.1,3930.0,9.70222799]
[1761371135256,0.00284394,3930.1,3930.0,10.26457799]
[1761371139346,0.00284394,3930.1,3930.0,11.17765371]
[1761371140051,0.00284394,3930.1,3930.0,13.47237799]
[1761371141254,0.00284394,3930.1,3930.0,14.84199157]
[1761371145250,0.00284394,3930.1,3930.0,13.47237799]
[1761371148050,0.00284394,3930.1,3930.0,14.84199157]
[1761371148245,3.9106,3931.0,3930.5,0.45789]
[1761371148447,3.7737,3931.0,3930.9,0.7636]
[1761371148651,3.7737,3931.0,3930.9,9.6936]
[1761371149055,3.5386,3931.0,3930.9,9.6936]
[1761371149353,3.54188611,3931.0,3930.9,9.6936]
[1761371150460,3.21108611,3931.0,3930.9,9.6936]
[1761371150963,3.54188611,3931.0,3930.9,9.6936]
[1761371151257,3.77698611,3931.0,3930.9,9.6936]
[1761371152361,0.56918611,3931.0,3930.9,9.6936]